[Event "33rd Cannes Open 2019"]
[Site "Cannes"]
[Date "2019.02.19"]
[Round "2.2"]
[White "Gupta, Abhijeet"]
[Black "Di Benedetto, Edoardo"]
[Result "1-0"]
[ECO "D35"]
[WhiteElo "2587"]
[BlackElo "2382"]
[Annotator "ChessBase"]
[PlyCount "53"]
[EventDate "2019.02.18"]
[EventType "swiss"]
[EventCountry "FRA"]
[SourceTitle "playchess.com"]
[Source "ChessBase"]
[SourceQuality "1"]
[TimeControl "40/5400+30:1800+30"]

1. d4 {[%emt 0:00:00]} d5 {[%emt 0:00:00]} 2. c4 {[%emt 0:00:00]} e6 {[%emt 0:00:00]} 3. Nc3 {[%emt 0:00:00]} Nf6 {[%emt 0:00:00]} 4. cxd5 {[%emt 0:00:11]} exd5 {[%emt 0:00:09]} 5. Bg5 {[%emt 0:00:05]} Be7 {[%emt 0:00:34]} 6. e3 {[%emt 0:00:05]} O-O {[%emt 0:01:01]} 7. Bd3 {[%emt 0:00:06]} c6 {[%emt 0:02:36]} 8. Qc2 {[%emt 0:00:35]} g6 {[%emt 0:06:30]} 9. Nf3 {[%emt 0:00:55]} Nh5 {[%emt 0:04:47]} 10. Bh6 {[%emt 0:01:48]} Re8 {[%emt 0:01:48]} 11. h3 {[%emt 0:00:19]} Bf8 {[%emt 0:11:21]} 12. Bg5 {[%emt 0:04:51]} Be7 {[%emt 0:07:46]} 13. g4 {[%emt 0:00:15]} Ng7 {[%emt 0:04:31]} 14. Bh6 {[%emt 0:00:13]} Rf8 {[%emt 0:06:59]} 15. O-O-O {[%emt 0:01:01]} f5 {[%emt 0:03:18]} 16. Ne5 {[%emt 0:00:25]} Bg5 {[%emt 0:09:29]} 17. Bxg7 {[%emt 0:02:29]} Kxg7 {[%emt 0:00:07]} 18. h4 {[%emt 0:00:23]} Bf6 {[%emt 0:01:43]} 19. h5 {[%emt 0:02:23]} Bxe5 {[%emt 0:01:15]} 20. dxe5 {[%emt 0:03:07]} fxg4 {[%emt 0:00:57]} 21. hxg6 {[%emt 0:00:07]} h6 {[%emt 0:00:14]} 22. f4 {[%emt 0:00:09]} gxf3 {[%emt 0:02:58]} 23. Rxh6 {[%emt 0:00:38]} Rh8 {[%emt 0:00:18]} 24. Rh7+ {[%emt 0:00:38]} Rxh7 {[%emt 0:00:06]} 25. gxh7 {[%emt 0:00:03]} Be6 {[%emt 0:01:48]} 26. Bf5 {[%emt 0:00:30]} Qe7 {[%emt 0:09:11]} 27. Bxe6 {[%emt 0:01:42]} 1-0

[Event "33rd Cannes Open 2019"]
[Site "Cannes"]
[Date "2019.02.19"]
[Round "3.3"]
[White "Popov, Artem G."]
[Black "Nasuta, Grzegorz"]
[Result "1/2-1/2"]
[ECO "D80"]
[WhiteElo "1353"]
[BlackElo "2504"]
[Annotator "ChessBase"]
[PlyCount "51"]
[EventDate "2019.02.18"]
[EventType "swiss"]
[EventCountry "FRA"]
[SourceTitle "playchess.com"]
[Source "ChessBase"]
[SourceQuality "1"]
[TimeControl "40/5400+30:1800+30"]

1. d4 {[%emt 0:01:21]} Nf6 {[%emt 0:00:06]} 2. c4 {[%emt 0:00:07]} g6 {[%emt 0:00:05]} 3. Nc3 {[%emt 0:00:52]} d5 {[%emt 0:00:05]} 4. Bg5 {[%emt 0:00:06]} Bg7 {[%emt 0:00:05]} 5. Bxf6 {[%emt 0:00:37]} Bxf6 {[%emt 0:00:05]} 6. cxd5 {[%emt 0:00:06]} c6 {[%emt 0:00:19]} 7. e4 {[%emt 0:00:12]} Bg7 {[%emt 0:00:38]} 8. Bc4 {[%emt 0:01:09]} cxd5 {[%emt 0:00:09]} 9. exd5 {[%emt 0:01:12]} O-O {[%emt 0:00:47]} 10. Nge2 {[%emt 0:00:29]} Nd7 {[%emt 0:01:09]} 11. O-O {[%emt 0:00:51]} Nf6 {[%emt 0:01:12]} 12. Qb3 {[%emt 0:05:52]} a6 {[%emt 0:11:49]} 13. a4 {[%emt 0:01:03]} b6 {[%emt 0:01:25]} 14. Rfe1 {[%emt 0:15:25]} Bb7 {[%emt 0:05:13]} 15. Qb4 {[%emt 0:01:14]} Bxd5 {[%emt 0:24:43]} 16. Nxd5 {[%emt 0:21:55]} Nxd5 {[%emt 0:00:08]} 17. Bxd5 {[%emt 0:00:09]} Qxd5 {[%emt 0:00:06]} 18. Qxe7 {[%emt 0:00:16]} Rfd8 {[%emt 0:11:29]} 19. Rac1 {[%emt 0:06:55]} Bxd4 {[%emt 0:09:55]} 20. Nxd4 {[%emt 0:02:10]} Qxd4 {[%emt 0:00:07]} 21. Rc7 {[%emt 0:00:27]} Rf8 {[%emt 0:00:24]} 22. b3 {[%emt 0:02:51]} Rac8 {[%emt 0:05:48]} 23. h3 {[%emt 0:04:00]} Rxc7 {[%emt 0:17:03]} 24. Qxc7 {[%emt 0:00:16]} a5 {[%emt 0:00:13]} 25. Qe5 {[%emt 0:18:14]} Rd8 {[%emt 0:01:47]} 26. Re3 {[%emt 0:01:31]} 1/2-1/2

[Event "33rd Cannes Open 2019"]
[Site "Cannes"]
[Date "2019.02.19"]
[Round "3.4"]
[White "Krzyzanowski, Marcin"]
[Black "Yankelevich, Lev"]
[Result "1-0"]
[ECO "A45"]
[WhiteElo "2504"]
[BlackElo "2445"]
[Annotator "ChessBase"]
[PlyCount "95"]
[EventDate "2019.02.18"]
[EventType "swiss"]
[EventCountry "FRA"]
[SourceTitle "playchess.com"]
[Source "ChessBase"]
[SourceQuality "1"]
[TimeControl "40/5400+30:1800+30"]

1. d4 {[%emt 0:00:06]} Nf6 {[%emt 0:02:43]} 2. Bf4 {[%emt 0:00:27]} c5 {[%emt 0:02:13]} 3. d5 {[%emt 0:02:51]} d6 {[%emt 0:01:06]} 4. Nc3 {[%emt 0:01:13]} e5 {[%emt 0:00:02]} 5. dxe6 {[%emt 0:00:24]} Bxe6 {[%emt 0:00:03]} 6. e4 {[%emt 0:00:28]} d5 {[%emt 0:00:04]} 7. exd5 {[%emt 0:06:00]} Nxd5 {[%emt 0:00:13]} 8. Nxd5 {[%emt 0:01:15]} Bxd5 {[%emt 0:13:47]} 9. Qe2+ {[%emt 0:05:19]} Be6 {[%emt 0:05:03]} 10. Nf3 {[%emt 0:04:28]} Nc6 {[%emt 0:09:57]} 11. Qb5 {[%emt 0:05:22]} Qc8 {[%emt 0:13:14]} 12. O-O-O {[%emt 0:10:25]} Be7 {[%emt 0:01:25]} 13. Bd6 {[%emt 0:04:41]} O-O {[%emt 0:05:09]} 14. Qxc5 {[%emt 0:05:38]} b6 {[%emt 0:02:33]} 15. Qc3 {[%emt 0:07:22]} Rd8 {[%emt 0:10:04]} 16. Bxe7 {[%emt 0:03:17]} Rxd1+ {[%emt 0:00:04]} 17. Kxd1 {[%emt 0:00:04]} Qd7+ {[%emt 0:00:01]} 18. Kc1 {[%emt 0:00:41]} Nxe7 {[%emt 0:00:29]} 19. Bc4 {[%emt 0:02:04]} Rc8 {[%emt 0:01:21]} 20. Bxe6 {[%emt 0:03:41]} Qxe6 {[%emt 0:01:10]} 21. Rd1 {[%emt 0:03:15]} h6 {[%emt 0:05:10]} 22. Qb3 {[%emt 0:03:20]} Qg4 {[%emt 0:01:45]} 23. Qxf7+ {[%emt 0:00:58]} Kxf7 {[%emt 0:00:17]} 24. Ne5+ {[%emt 0:00:04]} Ke6 {[%emt 0:00:02]} 25. Nxg4 {[%emt 0:00:05]} Nd5 {[%emt 0:00:02]} 26. Ne3 {[%emt 0:00:41]} Nxe3 {[%emt 0:00:34]} 27. fxe3 {[%emt 0:00:25]} Rf8 {[%emt 0:00:01]} 28. c4 {[%emt 0:01:10]} Ke5 {[%emt 0:00:24]} 29. Kc2 {[%emt 0:02:29]} Ke4 {[%emt 0:00:09]} 30. Rd7 {[%emt 0:04:06]} Rf2+ {[%emt 0:00:23]} 31. Rd2 {[%emt 0:02:01]} Rf1 {[%emt 0:01:14]} 32. b4 {[%emt 0:14:16]} Kxe3 {[%emt 0:00:37]} 33. Kc3 {[%emt 0:01:51]} Rf5 {[%emt 0:04:12]} 34. Rd3+ {[%emt 0:01:23]} Ke4 {[%emt 0:01:14]} 35. Rd7 {[%emt 0:00:54]} Rg5 {[%emt 0:00:59]} 36. Re7+ {[%emt 0:00:45]} Kf4 {[%emt 0:00:41]} 37. Re2 {[%emt 0:00:44]} Rh5 {[%emt 0:00:04]} 38. Kd4 {[%emt 0:02:24]} Rxh2 {[%emt 0:01:47]} 39. g3+ {[%emt 0:01:08]} Kxg3 {[%emt 0:00:02]} 40. Rxh2 {[%emt 0:00:05]} Kxh2 {[%emt 0:00:01]} 41. c5 {[%emt 0:30:09]} g5 {[%emt 0:30:39]} 42. c6 {[%emt 0:00:02]} g4 {[%emt 0:00:06]} 43. c7 {[%emt 0:00:05]} g3 {[%emt 0:00:48]} 44. c8=Q {[%emt 0:00:05]} g2 {[%emt 0:00:02]} 45. Qc7+ {[%emt 0:00:08]} Kh1 {[%emt 0:00:44]} 46. Qc6 {[%emt 0:00:12]} h5 {[%emt 0:00:05]} 47. Ke3 {[%emt 0:00:13]} Kh2 {[%emt 0:00:55]} 48. Qd6+ {[%emt 0:00:04]} 1-0

[Event "33rd Cannes Open 2019"]
[Site "Cannes"]
[Date "2019.02.19"]
[Round "3.8"]
[White "Paszewski, Mateusz"]
[Black "Ghasi, Ameet K"]
[Result "0-1"]
[ECO "B08"]
[WhiteElo "2347"]
[BlackElo "2503"]
[Annotator "RC"]
[PlyCount "74"]
[EventDate "2019.02.18"]
[EventType "swiss"]
[EventCountry "FRA"]
[SourceTitle "playchess.com"]
[Source "ChessBase"]
[SourceQuality "1"]
[TimeControl "40/5400+30:1800+30"]

1. e4 {[%emt 0:02:48]} d6 {[%emt 0:00:18]} 2. d4 {[%emt 0:00:31]} Nf6 {[%emt 0:00:04]} 3. Nc3 {[%emt 0:00:03]} g6 {[%emt 0:00:04]} 4. Nf3 {[%emt 0:00:18]} Bg7 {[%emt 0:00:05]} 5. Be3 {[%emt 0:00:03]} c6 {[%emt 0:00:10]} 6. Qd2 {[%emt 0:00:06]} O-O {[%emt 0:02:34]} 7. Bh6 {[%emt 0:01:03]} b5 {[%emt 0:00:11]} 8. Bd3 {[%emt 0:02:35]} Bg4 {[%emt 0:08:41]} 9. O-O-O {[%emt 0:13:04]} e5 {[%emt 0:02:29]} 10. dxe5 dxe5 {[%emt 0:00:39]} 11. Ne2 {[%emt 0:11:18]} Nbd7 {[%emt 0:04:42]} 12. Bxg7 {[%emt 0:10:23]} Kxg7 {[%emt 0:00:20]} 13. h3 {[%emt 0:00:03]} Bxf3 {[%emt 0:06:06]} 14. gxf3 {[%emt 0:00:07]} Nc5 {[%emt 0:00:19]} 15. h4 {[%emt 0:12:00]} Nh5 {[%emt 0:15:39]} 16. f4 {[%emt 0:04:13]} Qe7 {[%emt 0:08:29]} 17. fxe5 {[%emt 0:04:34]} Qxe5 {[%emt 0:05:00]} 18. f4 {[%emt 0:10:23]} Qe7 {[%emt 0:00:12]} 19. Qe3 {[%emt 0:01:01]} Rad8 {[%emt 0:03:08]} 20. e5 {[%emt 0:03:45]} Ne6 {[%emt 0:21:00]} 21. Rdg1 {[%emt 0:04:46]} Qc5 {[%emt 0:02:44]} 22. Qf3 {[%emt 0:03:19]} Qd5 {[%emt 0:05:42]} 23. Qxd5 {[%emt 0:11:18]} Rxd5 {[%emt 0:00:09]} 24. Be4 {[%emt 0:01:07]} Rc5 {[%emt 0:00:04]} 25. Rf1 {[%emt 0:00:06]} Rd8 {[%emt 0:01:37]} 26. Rh3 {[%emt 0:02:29]} Nd4 {[%emt 0:06:56]} 27. Ng1 {[%emt 0:00:16]} Rc4 {[%emt 0:02:00]} 28. Re3 {[%emt 0:00:59]} b4 {[%emt 0:00:44]} 29. Bd3 {[%emt 0:01:10]} Rc5 {[%emt 0:00:01]} 30. Ne2 {[%emt 0:00:19]} b3 {[%emt 0:03:21]} 31. axb3 {[%emt 0:00:38]} Nxb3+ {[%emt 0:00:01]} 32. Kd1 {[%emt 0:00:02]} Na5 {[%emt 0:00:07]} 33. Re4 {[%emt 0:00:58]} Nc4 {[%emt 0:00:18]} 34. Kc1 {[%emt 0:00:09]} Rxd3 {[%emt 0:00:42]} 35. cxd3 {[%emt 0:00:39]} Ne3+ {[%emt 0:00:04]} 36. Rc4 {[%emt 0:00:06]} Rxc4+ {[%emt 0:00:06]} 37. dxc4 {[%emt 0:00:10]} Nxf1 {[%emt 0:00:04]} 0-1

[Event "33rd Cannes Open 2019"]
[Site "Cannes"]
[Date "2019.02.20"]
[Round "4.1"]
[White "Gupta, Abhijeet"]
[Black "Krzyzanowski, Marcin"]
[Result "1-0"]
[ECO "A65"]
[WhiteElo "2587"]
[BlackElo "2504"]
[Annotator "ChessBase"]
[PlyCount "63"]
[EventDate "2019.02.18"]
[EventType "swiss"]
[EventCountry "FRA"]
[SourceTitle "playchess.com"]
[Source "ChessBase"]
[SourceQuality "1"]
[TimeControl "40/5400+30:1800+30"]

1. d4 {[%emt 0:00:00]} Nf6 {[%emt 0:01:01]} 2. c4 {[%emt 0:00:00]} c5 {[%emt 0:00:12]} 3. d5 {[%emt 0:00:00]} e6 {[%emt 0:00:10]} 4. Nc3 {[%emt 0:00:00]} exd5 {[%emt 0:00:35]} 5. cxd5 {[%emt 0:00:00]} d6 {[%emt 0:00:03]} 6. e4 {[%emt 0:00:17]} g6 {[%emt 0:00:05]} 7. f3 {[%emt 0:00:20]} Bg7 {[%emt 0:00:32]} 8. Nge2 {[%emt 0:00:10]} a6 {[%emt 0:00:53]} 9. a4 {[%emt 0:00:05]} Nbd7 {[%emt 0:00:49]} 10. Ng3 {[%emt 0:02:03]} h5 {[%emt 0:00:48]} 11. Be2 {[%emt 0:00:09]} Rb8 {[%emt 0:03:21]} 12. O-O {[%emt 0:04:45]} Nh7 {[%emt 0:03:23]} 13. Be3 {[%emt 0:02:11]} Ne5 {[%emt 0:00:59]} 14. Qd2 {[%emt 0:02:19]} O-O {[%emt 0:04:44]} 15. f4 {[%emt 0:07:54]} Ng4 {[%emt 0:01:39]} 16. Bxg4 {[%emt 0:00:06]} hxg4 {[%emt 0:03:41]} 17. e5 {[%emt 0:03:59]} b6 {[%emt 0:03:52]} 18. Nce4 {[%emt 0:03:49]} dxe5 {[%emt 0:01:07]} 19. f5 {[%emt 0:00:10]} gxf5 {[%emt 0:05:54]} 20. Nxf5 {[%emt 0:05:29]} Bxf5 {[%emt 0:01:07]} 21. Rxf5 {[%emt 0:00:04]} Qd7 {[%emt 0:01:25]} 22. Raf1 {[%emt 0:03:22]} Qxa4 {[%emt 0:03:39]} 23. Ng3 {[%emt 0:08:03]} Qb4 {[%emt 0:28:31]} 24. Qf2 {[%emt 0:05:44]} Qb3 {[%emt 0:03:28]} 25. Rh5 {[%emt 0:02:11]} Nf6 {[%emt 0:17:42]} 26. Rg5 {[%emt 0:04:18]} Nh7 {[%emt 0:00:17]} 27. Rxg4 {[%emt 0:08:04]} f5 {[%emt 0:01:14]} 28. Nxf5 {[%emt 0:00:25]} Rxf5 {[%emt 0:00:20]} 29. Qxf5 {[%emt 0:00:11]} Qxe3+ {[%emt 0:00:04]} 30. Kh1 {[%emt 0:00:03]} Kh8 {[%emt 0:03:02]} 31. Rh4 {[%emt 0:00:56]} Bh6 32. Rxh6 {[%emt 0:00:25]} 1-0

[Event "33rd Cannes Open 2019"]
[Site "Cannes"]
[Date "2019.02.20"]
[Round "4.3"]
[White "Nasuta, Grzegorz"]
[Black "Barp, Alberto"]
[Result "1-0"]
[ECO "C45"]
[WhiteElo "2504"]
[BlackElo "2420"]
[Annotator "RC"]
[PlyCount "60"]
[EventDate "2019.02.18"]
[EventType "swiss"]
[EventCountry "FRA"]
[SourceTitle "playchess.com"]
[Source "ChessBase"]
[SourceQuality "1"]
[TimeControl "40/5400+30:1800+30"]

1. e4 {[%emt 0:01:25]} e5 {[%emt 0:00:03]} 2. Nf3 {[%emt 0:00:05]} Nc6 {[%emt 0:00:03]} 3. d4 {[%emt 0:00:20]} exd4 {[%emt 0:00:05]} 4. Nxd4 {[%emt 0:00:07]} Bc5 {[%emt 0:00:05]} 5. Nxc6 {[%emt 0:00:20]} Qf6 {[%emt 0:00:11]} 6. Qf3 {[%emt 0:00:05]} dxc6 {[%emt 0:01:37]} 7. Nc3 {[%emt 0:00:12]} Be6 {[%emt 0:03:34]} 8. Qg3 {[%emt 0:01:22]} O-O-O {[%emt 0:09:15]} 9. Be3 {[%emt 0:00:12]} Bxe3 {[%emt 0:08:51]} 10. Qxe3 {[%emt 0:00:08]} Qd4 {[%emt 0:00:25]} 11. Qxd4 {[%emt 0:00:18]} Rxd4 {[%emt 0:00:02]} 12. Rd1 {[%emt 0:00:28]} Rxd1+ {[%emt 0:01:37]} 13. Kxd1 {[%emt 0:10:40]} Ne7 {[%emt 0:02:57]} 14. Be2 {[%emt 0:07:02]} Rd8+ {[%emt 0:10:04]} 15. Kc1 {[%emt 0:00:09]} c5 {[%emt 0:00:23]} 16. Rd1 {[%emt 0:22:33]} Rd4 {[%emt 0:06:29]} 17. f4 {[%emt 0:23:44]} f6 {[%emt 0:03:49]} 18. a3 {[%emt 0:04:01]} Nc6 {[%emt 0:06:24]} 19. Bf3 {[%emt 0:03:56]} Rxd1+ {[%emt 0:09:57]} 20. Bxd1 {[%emt 0:00:10]} Nd4 {[%emt 0:01:45]} 21. Kd2 {[%emt 0:00:16]} Kd7 {[%emt 0:01:04]} 22. Ke3 {[%emt 0:03:28]} f5 {[%emt 0:08:07]} 23. Ne2 {[%emt 0:08:21]} Nxe2 {[%emt 0:03:24]} 24. Bxe2 {[%emt 0:00:05]} g6 {[%emt 0:02:44]} 25. exf5 {[%emt 0:02:05]} gxf5 {[%emt 0:00:50]} 26. Bd3 {[%emt 0:01:42]} Ke7 {[%emt 0:05:23]} 27. g4 {[%emt 0:05:58]} c4 {[%emt 0:02:35]} 28. Bxf5 {[%emt 0:00:29]} Bxf5 {[%emt 0:00:21]} 29. gxf5 {[%emt 0:00:06]} Kf6 {[%emt 0:00:05]} 30. c3 {[%emt 0:00:42]} Kxf5 {[%emt 0:00:04] Ke4+} 1-0

[Event "33rd Cannes Open 2019"]
[Site "Cannes"]
[Date "2019.02.20"]
[Round "4.4"]
[White "Ghasi, Ameet K"]
[Black "Popov, Artem G."]
[Result "1/2-1/2"]
[ECO "A06"]
[WhiteElo "2503"]
[BlackElo "1353"]
[Annotator "RC"]
[PlyCount "89"]
[EventDate "2019.02.18"]
[EventType "swiss"]
[EventCountry "FRA"]
[SourceTitle "playchess.com"]
[Source "ChessBase"]
[SourceQuality "1"]
[TimeControl "40/5400+30:1800+30"]

1. Nf3 {[%emt 0:00:23]} d5 {[%emt 0:08:48]} 2. g3 {[%emt 0:00:12]} Bg4 {[%emt 0:00:21]} 3. Bg2 {[%emt 0:00:06]} Nc6 {[%emt 0:00:05]} 4. d3 {[%emt 0:05:47]} Qd7 {[%emt 0:01:27]} 5. h3 {[%emt 0:00:37]} Bh5 {[%emt 0:00:07]} 6. c3 {[%emt 0:08:38]} e5 {[%emt 0:00:35]} 7. b4 {[%emt 0:08:52]} a6 {[%emt 0:00:20]} 8. Nbd2 {[%emt 0:01:52]} f6 {[%emt 0:09:36]} 9. O-O {[%emt 0:00:57]} Nge7 {[%emt 0:00:45]} 10. a4 {[%emt 0:06:43]} Bf7 {[%emt 0:05:29]} 11. Ba3 {[%emt 0:07:27]} Be6 {[%emt 0:03:26]} 12. Kh2 {[%emt 0:02:36]} h5 {[%emt 0:03:20]} 13. b5 {[%emt 0:07:49]} axb5 {[%emt 0:02:36]} 14. axb5 {[%emt 0:00:03]} Nd8 {[%emt 0:00:06]} 15. c4 {[%emt 0:00:25]} h4 {[%emt 0:01:22]} 16. Ng1 {[%emt 0:11:40]} hxg3+ {[%emt 0:08:06]} 17. fxg3 {[%emt 0:00:06]} dxc4 {[%emt 0:05:43]} 18. Ne4 {[%emt 0:08:38]} Rxa3 {[%emt 0:01:56]} 19. Rxa3 {[%emt 0:01:54]} Nf5 {[%emt 0:01:12]} 20. Rxf5 {[%emt 0:04:53]} Bxf5 {[%emt 0:02:20]} 21. Rc3 {[%emt 0:00:06]} Bxe4 {[%emt 0:14:07]} 22. Bxe4 {[%emt 0:00:06]} Bc5 {[%emt 0:00:06]} 23. Bg2 {[%emt 0:05:18]} Bb6 {[%emt 0:13:14]} 24. Nf3 {[%emt 0:02:55]} e4 {[%emt 0:04:43]} 25. Nd2 {[%emt 0:00:09]} cxd3 {[%emt 0:04:38]} 26. Nxe4 {[%emt 0:00:20]} dxe2 {[%emt 0:01:17]} 27. Qxe2 {[%emt 0:00:12]} Qe7 {[%emt 0:01:57]} 28. Qg4 {[%emt 0:08:20]} O-O {[%emt 0:00:09]} 29. Rf3 {[%emt 0:00:58]} Ne6 {[%emt 0:03:06]} 30. Bf1 {[%emt 0:00:53]} f5 {[%emt 0:00:53]} 31. Rxf5 {[%emt 0:01:28]} Rxf5 {[%emt 0:00:09]} 32. Qxf5 {[%emt 0:00:03]} Qf7 {[%emt 0:00:13]} 33. Qxf7+ {[%emt 0:02:51]} Kxf7 {[%emt 0:00:01]} 34. h4 {[%emt 0:00:31]} Ke7 {[%emt 0:00:53]} 35. Kh3 {[%emt 0:00:19]} Nc5 {[%emt 0:00:57]} 36. Nd2 {[%emt 0:01:32]} c6 {[%emt 0:01:42]} 37. Nc4 {[%emt 0:00:11]} Bc7 {[%emt 0:00:23]} 38. bxc6 {[%emt 0:00:45]} bxc6 {[%emt 0:00:02]} 39. Bg2 {[%emt 0:00:05]} Nd3 {[%emt 0:00:14]} 40. Bxc6 {[%emt 0:00:28]} Ne5 {[%emt 0:00:04]} 41. Nxe5 {[%emt 0:30:05]} Bxe5 {[%emt 0:30:06]} 42. g4 {[%emt 0:01:27]} g6 {[%emt 0:00:29]} 43. Be4 {[%emt 0:00:05]} Kf6 {[%emt 0:00:05]} 44. g5+ {[%emt 0:00:03]} Kg7 {[%emt 0:00:04]} 45. Kg4 {[%emt 0:00:16]} 1/2-1/2

[Event "33rd Cannes Open 2019"]
[Site "Cannes"]
[Date "2019.02.20"]
[Round "4.6"]
[White "Flear, Glenn C"]
[Black "Paltrinieri, Nicholas"]
[Result "1/2-1/2"]
[ECO "A84"]
[WhiteElo "2451"]
[BlackElo "2295"]
[Annotator "RC"]
[PlyCount "89"]
[EventDate "2019.02.18"]
[EventType "swiss"]
[EventCountry "FRA"]
[SourceTitle "playchess.com"]
[Source "ChessBase"]
[SourceQuality "1"]
[TimeControl "40/5400+30:1800+30"]

1. d4 {[%emt 0:00:00]} e6 {[%emt 0:00:00]} 2. c4 {[%emt 0:00:02]} f5 {[%emt 0:00:00]} 3. Nc3 {[%emt 0:00:36]} Nf6 {[%emt 0:00:00]} 4. e3 {[%emt 0:00:11]} d6 {[%emt 0:04:17]} 5. b3 {[%emt 0:05:49]} g6 {[%emt 0:02:09]} 6. Bb2 {[%emt 0:00:36]} Bg7 {[%emt 0:00:05]} 7. g3 {[%emt 0:03:14]} O-O {[%emt 0:00:40]} 8. Bg2 {[%emt 0:00:13]} c6 {[%emt 0:04:24]} 9. Nf3 {[%emt 0:05:13]} Qc7 {[%emt 0:04:50]} 10. O-O {[%emt 0:04:11]} e5 {[%emt 0:04:38]} 11. c5 {[%emt 0:12:25]} e4 {[%emt 0:02:34]} 12. cxd6 {[%emt 0:01:43]} Qxd6 {[%emt 0:00:02]} 13. Ne5 {[%emt 0:01:52]} Be6 {[%emt 0:01:44]} 14. Qc1 {[%emt 0:18:06]} Re8 {[%emt 0:09:50]} 15. Ba3 {[%emt 0:01:40]} Qd8 {[%emt 0:00:08]} 16. Nc4 {[%emt 0:12:17]} Na6 {[%emt 0:00:27]} 17. Ne2 {[%emt 0:00:45]} Nd5 {[%emt 0:06:56]} 18. Qd2 {[%emt 0:02:42]} b5 {[%emt 0:10:46]} 19. Ne5 {[%emt 0:01:38]} c5 {[%emt 0:00:05]} 20. Rad1 {[%emt 0:05:08]} Rc8 {[%emt 0:02:37]} 21. f3 {[%emt 0:04:24]} Bh6 {[%emt 0:16:24]} 22. Nf4 {[%emt 0:00:43]} cxd4 {[%emt 0:04:09]} 23. Qxd4 {[%emt 0:03:33]} Bxf4 {[%emt 0:06:21]} 24. gxf4 {[%emt 0:00:17]} Qb6 {[%emt 0:00:03]} 25. Qxb6 {[%emt 0:04:06]} axb6 {[%emt 0:00:01]} 26. Rfe1 {[%emt 0:00:44]} Rc2 {[%emt 0:00:16]} 27. fxe4 {[%emt 0:01:51]} Nc3 {[%emt 0:00:05]} 28. Rd6 {[%emt 0:01:34]} Rxa2 {[%emt 0:00:32]} 29. exf5 {[%emt 0:00:39]} gxf5 {[%emt 0:00:05]} 30. Bc6 {[%emt 0:01:08]} Rxa3 {[%emt 0:13:13]} 31. Bxe8 {[%emt 0:00:07]} Bxb3 {[%emt 0:00:03]} 32. Bf7+ {[%emt 0:02:21]} Bxf7 {[%emt 0:03:04]} 33. Rd8+ {[%emt 0:00:04]} Kg7 {[%emt 0:00:01]} 34. Rd7 {[%emt 0:00:07]} Kf6 {[%emt 0:00:02]} 35. Rxf7+ {[%emt 0:00:27]} Ke6 {[%emt 0:00:01]} 36. Rxh7 {[%emt 0:00:41]} Nc5 {[%emt 0:01:06]} 37. Rh6+ {[%emt 0:00:56]} Kd5 {[%emt 0:00:01]} 38. Rxb6 {[%emt 0:01:15]} Ra2 {[%emt 0:00:04]} 39. h4 {[%emt 0:02:16]} N5e4 {[%emt 0:01:11]} 40. Nf3 {[%emt 0:03:14]} Nf2 {[%emt 0:05:03]} 41. Nd4 {[%emt 0:07:41]} Nh3+ {[%emt 0:17:05]} 42. Kh1 {[%emt 0:00:08]} Nf2+ {[%emt 0:00:02]} 43. Kg1 {[%emt 0:00:21]} Nh3+ {[%emt 0:00:01]} 44. Kh1 {[%emt 0:00:07]} Nf2+ {[%emt 0:00:02]} 45. Kg1 1/2-1/2

[Event "33rd Cannes Open 2019"]
[Site "Cannes"]
[Date "2019.02.20"]
[Round "4.7"]
[White "Debray, Christopher"]
[Black "Gharamian, Tigran"]
[Result "1/2-1/2"]
[ECO "A40"]
[WhiteElo "2335"]
[BlackElo "2627"]
[Annotator "RC"]
[PlyCount "29"]
[EventDate "2019.02.18"]
[EventType "swiss"]
[EventCountry "FRA"]
[SourceTitle "playchess.com"]
[Source "ChessBase"]
[SourceQuality "1"]
[TimeControl "40/5400+30:1800+30"]

1. d4 {[%emt 0:00:20]} Nf6 {[%emt 0:00:00]} 2. c4 {[%emt 0:00:14]} e6 {[%emt 0:00:00]} 3. g3 {[%emt 0:00:30]} c5 {[%emt 0:00:00]} 4. Nf3 {[%emt 0:00:08]} cxd4 {[%emt 0:00:07]} 5. Nxd4 {[%emt 0:00:04]} Qc7 {[%emt 0:00:05]} 6. Nc3 {[%emt 0:00:10]} Bb4 {[%emt 0:00:07]} 7. Bg2 {[%emt 0:05:30]} Qxc4 {[%emt 0:00:53]} 8. O-O {[%emt 0:01:03]} Nc6 {[%emt 0:02:12]} 9. Ndb5 {[%emt 0:05:08]} O-O {[%emt 0:01:18]} 10. Bf4 {[%emt 0:01:48]} d5 {[%emt 0:01:06]} 11. b3 {[%emt 0:06:16]} Qc5 {[%emt 0:02:00]} 12. Bd6 {[%emt 0:00:37]} Qb6 {[%emt 0:00:07]} 13. Bxf8 {[%emt 0:00:49]} Bxf8 {[%emt 0:03:41]} 14. e3 {[%emt 0:06:12]} Qa5 {[%emt 0:38:50]} 15. a3 {[%emt 0:09:54]} 1/2-1/2